bitfinex/quotes_BTCUSD_20230404
["timestamp","ask_amount","ask_price","bid_price","bid_amount"]
[1680585511948,0.36291233,27919.0,27915.0,0.64180272]
[1680585513281,0.32298987,27918.0,27915.0,0.64180272]
[1680585513499,0.33015387,27918.0,27916.0,0.10432234]
[1680585514883,0.33215387,27918.0,27916.0,0.11532234]
[1680585515101,0.33015387,27918.0,27916.0,0.10432234]
[1680585515317,0.009164,27918.0,27916.0,0.11532234]
[1680585515532,0.002,27918.0,27917.0,0.10592682]
[1680585515742,0.002,27918.0,27917.0,0.12058884]
[1680585516400,0.35632101,27920.0,27917.0,0.12058884]
[1680585516830,0.002,27918.0,27917.0,0.12058884]
[1680585517046,0.004,27918.0,27917.0,0.13158884]
[1680585517468,0.35632101,27920.0,27917.0,0.12058884]
[1680585517691,0.009373,27920.0,27917.0,0.13158884]
[1680585517934,0.00021,27921.0,27917.0,0.07537155]
[1680585518147,0.3,27921.0,27918.0,0.02355]
[1680585518391,0.00021,27921.0,27919.0,0.017055]
[1680585518616,0.05010776,27922.0,27919.0,0.19119148]
[1680585518826,0.04989776,27922.0,27920.0,0.016733]
[1680585519049,0.00021,27924.0,27920.0,0.05034851]
[1680585519278,0.25557451,27924.0,27920.0,0.09432504]
[1680585519494,0.25578451,27924.0,27920.0,0.03361551]
[1680585519714,0.25578451,27924.0,27920.0,0.06161551]
[1680585519933,0.25578451,27924.0,27920.0,0.03361551]
[1680585520148,0.25578451,27924.0,27920.0,0.006]
[1680585520371,0.32116758,27923.0,27920.0,0.034]
[1680585520618,0.32116758,27923.0,27920.0,0.006]
[1680585520837,0.007372,27924.0,27920.0,0.034]
[1680585521132,0.007162,27923.0,27920.0,0.006]
[1680585521349,0.2982807,27922.0,27920.0,0.10409379]
[1680585522472,0.2982807,27922.0,27920.0,0.07609379]
[1680585522690,0.2982807,27922.0,27920.0,0.10409379]
[1680585522910,0.33666494,27922.0,27920.0,0.006]
[1680585523129,0.33666494,27922.0,27920.0,0.034]
[1680585523130,0.3054427,27922.0,27920.0,0.034]
[1680585524227,0.3054427,27922.0,27920.0,0.006]
[1680585524455,0.2982807,27922.0,27920.0,0.034]
[1680585525125,0.34524638,27921.0,27920.0,0.034]
[1680585526248,0.34524638,27921.0,27920.0,0.006]
[1680585526464,0.34524638,27921.0,27920.0,0.034]
[1680585527586,0.34524638,27921.0,27920.0,0.006]
[1680585528584,0.34524638,27921.0,27920.0,0.034]
[1680585528789,0.34524638,27921.0,27920.0,0.006]
[1680585528990,0.34524638,27921.0,27920.0,0.034]
[1680585529329,0.34545638,27921.0,27920.0,0.006]
[1680585529529,0.34545638,27921.0,27920.0,0.034]
[1680585529740,0.34545638,27921.0,27920.0,0.006]
[1680585530136,0.34545638,27921.0,27920.0,0.029]
[1680585530292,0.34545638,27921.0,27920.0,0.006]
[1680585530489,0.34545638,27921.0,27920.0,0.029]
[1680585530755,0.34545638,27921.0,27920.0,0.04352936]
[1680585530892,0.35261938,27921.0,27920.0,0.04352936]
[1680585531312,0.35261938,27921.0,27920.0,0.02052936]
[1680585531536,0.34524638,27921.0,27920.0,0.04352936]
[1680585531748,0.007373,27922.0,27920.0,0.04352936]
[1680585531957,0.042533,27922.0,27920.0,0.04352936]
[1680585532179,0.28677118,27922.0,27920.0,0.04352936]
[1680585532807,0.32841009,27922.0,27920.0,0.02052936]
[1680585533037,0.32841009,27922.0,27920.0,0.04352936]
[1680585533244,0.007162,27922.0,27920.0,0.04352936]
[1680585533952,0.29634078,27921.0,27920.0,0.04352936]
[1680585534167,0.36011778,27921.0,27920.0,0.04352936]
[1680585534800,0.36011778,27921.0,27920.0,0.02052936]
[1680585535013,0.36011778,27921.0,27920.0,0.03752936]
[1680585536283,0.36011778,27921.0,27920.0,0.03152936]
[1680585536711,0.42548556,27921.0,27920.0,0.03152936]
[1680585539206,0.72548556,27921.0,27920.0,0.03152936]
[1680585540093,0.66011778,27921.0,27920.0,0.03152936]
[1680585543217,0.66032778,27921.0,27920.0,0.01452936]
[1680585543430,0.66032778,27921.0,27920.0,0.02452936]
[1680585543669,0.66032778,27921.0,27917.0,0.21313909]
[1680585543891,0.66659581,27921.0,27920.0,0.001]
[1680585544154,0.72496378,27921.0,27920.0,0.001]
[1680585544369,0.82475378,27921.0,27920.0,0.001]
[1680585544579,1.22690685,27921.0,27915.0,0.08577662]
[1680585544796,0.0647,27917.0,27915.0,0.08559662]
[1680585545015,0.061782,27916.0,27915.0,0.21351005]
[1680585545230,0.061782,27916.0,27915.0,0.21357005]
[1680585545673,0.061782,27916.0,27915.0,0.09986071]
[1680585545889,0.061782,27916.0,27915.0,0.01451505]
[1680585546106,0.2173168,27916.0,27915.0,0.01451505]
[1680585546532,0.2173168,27916.0,27915.0,0.02451505]
[1680585547232,0.50912223,27916.0,27915.0,0.02451505]
[1680585548544,0.54412767,27916.0,27915.0,0.02451505]
[1680585548777,0.90832767,27916.0,27915.0,0.02451505]
[1680585548993,0.61652224,27916.0,27915.0,0.02451505]
[1680585549437,0.95860851,27916.0,27915.0,0.02451505]
[1680585550756,1.01569252,27916.0,27915.0,0.02451505]
[1680585551891,1.01569252,27916.0,27915.0,0.01451505]
[1680585552109,1.01969252,27916.0,27915.0,0.01651505]
[1680585552326,1.01569252,27916.0,27915.0,0.01451505]
[1680585552536,1.01969252,27916.0,27915.0,0.01651505]
[1680585553885,1.01969252,27916.0,27915.0,0.00768105]
[1680585554089,0.91969252,27916.0,27915.0,0.00768105]
[1680585554517,0.91569252,27916.0,27915.0,0.00568105]
[1680585554738,0.91969252,27916.0,27915.0,0.02026456]
[1680585554963,0.91569252,27916.0,27915.0,0.01826456]
[1680585555196,0.91969252,27916.0,27915.0,0.02026456]
[1680585555659,0.52052224,27916.0,27915.0,0.02026456]
[1680585557018,0.62052224,27916.0,27915.0,0.02026456]
[1680585557443,0.61652224,27916.0,27915.0,0.01826456]
[1680585557657,0.52052224,27916.0,27915.0,0.002]
[1680585557871,0.86331819,27916.0,27915.0,0.002]
[1680585558091,0.52052224,27916.0,27915.0,0.002]
[1680585558304,0.52052224,27916.0,27915.0,0.004]
[1680585558305,0.8282327,27916.0,27915.0,0.004]
[1680585558523,0.7726979,27916.0,27915.0,0.004]
[1680585558753,0.7726979,27916.0,27915.0,0.02226476]
[1680585558997,0.7087079,27916.0,27915.0,0.02226476]
[1680585559221,0.7007079,27916.0,27915.0,0.01826476]
[1680585559439,0.7047079,27916.0,27915.0,0.02026476]
[1680585559707,0.7047079,27916.0,27915.0,0.002]
[1680585559939,0.7044979,27916.0,27915.0,0.002]
[1680585560384,0.7044979,27916.0,27913.0,0.0208]
[1680585560385,0.80030429,27916.0,27913.0,0.0208]
[1680585560610,0.340316,27915.0,27913.0,0.0208]
[1680585560842,0.046699,27914.0,27913.0,0.0208]
[1680585561028,0.007164,27914.0,27913.0,0.0208]
[1680585561692,0.007164,27914.0,27913.0,0.03904057]
[1680585562048,0.010164,27914.0,27913.0,0.03904057]
[1680585564018,0.3247358,27914.0,27913.0,0.03904057]
[1680585564667,0.010164,27914.0,27913.0,0.03904057]
[1680585565588,0.26786435,27914.0,27913.0,0.03904057]
[1680585565821,1.91217348,27914.0,27913.0,0.01209815]
[1680585566041,2.07511264,27914.0,27913.0,0.01209815]
[1680585566253,2.06114188,27914.0,27913.0,0.01209815]
[1680585566465,2.06114188,27914.0,27907.0,0.02474198]
[1680585566685,2.06114188,27914.0,27908.0,0.15725685]
[1680585566686,0.0641,27910.0,27908.0,0.15725685]
[1680585566904,0.049195,27909.0,27908.0,0.15737685]
[1680585567119,0.349195,27909.0,27908.0,0.15743685]
[1680585567540,0.349195,27909.0,27908.0,0.17282615]
[1680585567961,0.4119786,27909.0,27908.0,0.17282615]
[1680585568178,0.355195,27909.0,27908.0,0.13060711]
[1680585568397,0.055195,27909.0,27908.0,0.13060711]
[1680585568609,0.055195,27909.0,27908.0,0.13042711]
[1680585569874,0.055195,27909.0,27908.0,0.13054711]
[1680585570495,0.055195,27909.0,27908.0,0.0175093]
[1680585570706,0.4334576,27909.0,27908.0,0.0173893]
[1680585570924,0.355195,27909.0,27908.0,0.0173893]
[1680585571797,0.348029,27909.0,27908.0,0.1647938]
[1680585572025,0.006,27909.0,27908.0,0.25013946]
[1680585572298,0.013166,27909.0,27908.0,0.09078228]
[1680585572535,0.013166,27909.0,27908.0,0.10560405]
[1680585572536,0.006,27909.0,27908.0,0.10560405]
[1680585572950,0.35643633,27911.0,27908.0,0.10560405]
[1680585573189,0.001,27909.0,27908.0,0.12260405]
[1680585573414,0.35643633,27911.0,27908.0,0.10560405]
[1680585573415,0.34927133,27911.0,27908.0,0.10560405]
[1680585573628,0.001,27909.0,27908.0,0.12260405]
[1680585573843,0.35643633,27911.0,27908.0,0.10560405]
[1680585574259,0.35643633,27911.0,27908.0,0.23339748]
[1680585574579,0.35643633,27911.0,27908.0,0.10578405]
[1680585574831,0.34927133,27911.0,27908.0,0.10560405]
[1680585575049,0.30021,27912.0,27909.0,0.08656566]
[1680585575273,0.007165,27912.0,27909.0,0.08656566]
[1680585575496,0.001,27911.0,27910.0,0.08516566]
[1680585575719,0.007165,27912.0,27910.0,0.09997035]
[1680585575947,0.008165,27912.0,27910.0,0.09997035]
[1680585576179,0.33151836,27913.0,27911.0,0.01439505]
[1680585576180,0.007375,27913.0,27911.0,0.01439505]
[1680585576396,0.043159,27912.0,27911.0,0.01439505]
[1680585576620,0.050324,27912.0,27911.0,0.01579505]
[1680585576836,0.007165,27912.0,27911.0,0.01579505]
[1680585577951,0.007165,27912.0,27911.0,0.10096071]
[1680585578369,0.010165,27912.0,27911.0,0.08656566]
[1680585578617,0.051732,27912.0,27911.0,0.08656566]
[1680585578850,0.010165,27912.0,27911.0,0.08656566]
[1680585579485,0.007165,27912.0,27911.0,0.08656566]
[1680585579692,0.008165,27912.0,27911.0,0.09656566]
[1680585580756,0.22053849,27912.0,27911.0,0.22435909]
[1680585580978,0.41786568,27912.0,27911.0,0.01]
[1680585581200,0.78672147,27912.0,27911.0,0.01]
[1680585581428,0.78693147,27912.0,27911.0,0.01]
[1680585581657,0.78593147,27912.0,27910.0,0.01480469]
[1680585581879,0.60235345,27911.0,27910.0,0.01480469]
[1680585582096,0.62405945,27911.0,27910.0,0.01480469]
[1680585582599,0.62405945,27911.0,27908.0,0.08516566]
[1680585582818,0.043051,27910.0,27908.0,0.08516566]
[1680585583029,0.021498,27909.0,27908.0,0.08516566]
[1680585583249,0.063802,27909.0,27908.0,0.08516566]
[1680585584340,0.063802,27909.0,27908.0,0.08616566]
[1680585584511,0.071802,27909.0,27908.0,0.08616566]
[1680585585868,0.41869779,27909.0,27908.0,0.55190822]
[1680585586060,0.41869779,27909.0,27908.0,0.55196822]
[1680585586314,0.41869779,27909.0,27908.0,0.55202822]
[1680585587390,0.45473637,27909.0,27908.0,0.55202822]
[1680585590205,0.45473637,27909.0,27908.0,0.63711604]
[1680585590398,0.48340037,27909.0,27908.0,0.63711575]
[1680585590613,0.48340037,27909.0,27908.0,0.55203253]
[1680585590770,0.48340037,27909.0,27908.0,0.56478624]
[1680585591203,0.48340037,27909.0,27908.0,0.22676349]
[1680585591398,0.48340037,27909.0,27908.0,0.22664349]
[1680585591603,0.57148055,27909.0,27908.0,0.64976259]
[1680585591816,0.48340037,27909.0,27908.0,0.64988259]
[1680585591961,0.48340037,27909.0,27908.0,0.56478624]
[1680585592377,0.78340037,27909.0,27908.0,0.56478624]
[1680585593026,0.78340037,27909.0,27908.0,0.22676685]
[1680585593246,0.78340037,27909.0,27908.0,0.22664685]
[1680585594294,0.78340037,27909.0,27908.0,0.64977047]
[1680585594500,0.78361037,27909.0,27908.0,0.64989047]
[1680585594710,0.78340037,27909.0,27908.0,0.56479076]
[1680585595356,0.78331632,27909.0,27908.0,0.56485076]
[1680585596427,0.78331632,27909.0,27908.0,0.22683695]
[1680585597034,0.78331632,27909.0,27908.0,0.14172714]
[1680585597242,0.78331632,27909.0,27908.0,0.14154714]
[1680585597685,0.78331632,27909.0,27908.0,0.56467173]
[1680585597930,0.78331632,27909.0,27908.0,0.56485173]
[1680585599216,0.87166895,27909.0,27908.0,0.56485173]
[1680585600081,0.87166895,27909.0,27908.0,0.01393371]
[1680585600310,0.87166895,27909.0,27908.0,0.01375371]
[1680585600796,0.87166895,27909.0,27908.0,0.09890538]
[1680585601031,0.58947316,27909.0,27908.0,0.01375371]
[1680585601510,0.89863885,27909.0,27908.0,0.01375371]
[1680585601759,0.89063885,27909.0,27908.0,0.01275371]
[1680585602021,0.91169354,27909.0,27908.0,0.01375371]
[1680585602268,0.68168316,27909.0,27908.0,0.01275371]
[1680585602486,0.70468316,27909.0,27908.0,0.01375371]
[1680585603386,0.96282486,27909.0,27908.0,0.01375371]
[1680585603798,0.70468316,27909.0,27908.0,0.01375371]
[1680585604017,0.97931932,27909.0,27908.0,0.01375371]
[1680585604239,0.95218671,27909.0,27908.0,0.01375371]
[1680585604453,0.70468316,27909.0,27908.0,0.01375371]
[1680585604679,1.02159197,27909.0,27908.0,0.01375371]
[1680585604893,1.0305195,27909.0,27908.0,0.01375371]
[1680585605104,0.71361069,27909.0,27908.0,0.01375371]
[1680585605577,0.91361069,27909.0,27908.0,0.01375371]
[1680585605782,2.58947359,27909.0,27908.0,0.01375371]
[1680585606437,2.53939564,27909.0,27908.0,0.01375371]
[1680585606683,2.58955764,27909.0,27908.0,0.001]
[1680585606890,2.53939564,27909.0,27908.0,0.001]
[1680585607103,2.58955764,27909.0,27908.0,0.001]
[1680585607745,0.1,27908.0,27907.0,0.00386]
[1680585607985,0.741621,27906.0,27905.0,0.01579]
[1680585608204,1.106121,27906.0,27905.0,0.01579]
[1680585608878,1.106121,27906.0,27905.0,0.02659113]
[1680585609088,1.133121,27906.0,27905.0,0.02659113]
[1680585609312,1.28649947,27906.0,27905.0,0.02659113]
[1680585610388,1.25949947,27906.0,27905.0,0.02659113]
[1680585610634,1.28649947,27906.0,27905.0,0.02659113]
[1680585610862,1.25949947,27906.0,27905.0,0.01579]
[1680585611073,1.28649947,27906.0,27905.0,0.01579]
[1680585613322,1.28449947,27906.0,27905.0,0.01579]
[1680585613732,1.25749947,27906.0,27905.0,0.01579]
[1680585613948,1.28449947,27906.0,27905.0,0.01579]
[1680585614163,1.25749947,27906.0,27905.0,0.01579]
[1680585614377,1.28449947,27906.0,27905.0,0.01579]
[1680585615444,1.54314897,27906.0,27905.0,0.01579]
[1680585615654,1.51614897,27906.0,27905.0,0.01579]
[1680585616099,1.25749947,27906.0,27905.0,0.01579]
[1680585616329,1.25749947,27906.0,27905.0,0.007827]
[1680585616563,1.28449947,27906.0,27905.0,0.007827]
[1680585616775,1.25749947,27906.0,27905.0,0.007827]
[1680585617028,1.28449947,27906.0,27905.0,0.007827]
[1680585618550,1.03080755,27906.0,27905.0,0.007827]
[1680585619379,1.00380755,27906.0,27905.0,0.007184]
[1680585619650,1.03080755,27906.0,27905.0,0.0181199]
[1680585619869,1.00380755,27906.0,27905.0,0.0181199]
[1680585620086,1.03101755,27906.0,27905.0,0.0181199]
[1680585620747,1.03080755,27906.0,27905.0,0.0181199]
[1680585620979,0.83280755,27906.0,27905.0,0.0181199]
[1680585621210,0.72530755,27906.0,27905.0,0.0181199]
[1680585622312,0.69830755,27906.0,27905.0,0.0181199]
[1680585622949,0.72430755,27906.0,27905.0,0.0181199]
[1680585623184,0.69830755,27906.0,27905.0,0.0181199]
[1680585623447,0.71830755,27906.0,27905.0,0.0181199]
[1680585623667,0.69830755,27906.0,27905.0,0.0181199]
[1680585623885,0.72430755,27906.0,27905.0,0.0181199]
[1680585624539,0.68212155,27906.0,27905.0,0.0181199]
[1680585624783,0.65612155,27906.0,27905.0,0.0181199]
[1680585625004,0.78640101,27906.0,27905.0,0.0181199]
[1680585625227,0.76640101,27906.0,27905.0,0.0181199]
[1680585625680,0.79240101,27906.0,27905.0,0.0181199]
[1680585625894,0.76640101,27906.0,27905.0,0.0181199]
[1680585626108,0.78640101,27906.0,27905.0,0.0181199]
[1680585626317,0.76640101,27906.0,27905.0,0.0181199]
[1680585626534,0.79240101,27906.0,27905.0,0.0181199]
[1680585627840,0.78523501,27906.0,27905.0,0.0181199]
[1680585628080,0.79240101,27906.0,27905.0,0.0181199]
[1680585630104,1.7977986,27906.0,27905.0,0.0181199]
[1680585630330,2.09968048,27906.0,27905.0,0.0181199]
[1680585630542,1.7977986,27906.0,27905.0,0.0181199]
[1680585630759,2.10039659,27906.0,27905.0,0.0181199]
[1680585630974,2.07439659,27906.0,27905.0,0.0181199]
[1680585631159,2.03589659,27906.0,27905.0,0.0181199]
[1680585631400,1.70729256,27906.0,27905.0,0.0181199]
[1680585631610,1.73429256,27906.0,27905.0,0.007184]
[1680585631847,2.00527447,27906.0,27905.0,0.007184]
[1680585632066,2.03227447,27906.0,27905.0,0.007184]
[1680585633842,1.73429256,27906.0,27905.0,0.007184]
[1680585634493,1.99392519,27906.0,27905.0,0.007184]
[1680585634922,1.73429256,27906.0,27905.0,0.007184]
[1680585635361,2.08480218,27906.0,27905.0,0.007184]
[1680585636442,1.73429256,27906.0,27905.0,0.007184]
[1680585637995,1.98808275,27906.0,27905.0,0.007184]
[1680585638431,2.00127617,27906.0,27905.0,0.007184]
[1680585638648,1.98644987,27906.0,27905.0,0.007184]
[1680585639122,1.73429256,27906.0,27905.0,0.007184]
[1680585639342,2.01754833,27906.0,27905.0,0.007184]
[1680585639571,1.73429256,27906.0,27905.0,0.007184]
[1680585640440,2.00288852,27906.0,27905.0,0.007184]
[1680585640656,2.00288852,27906.0,27905.0,0.0399545]
[1680585641274,1.73429256,27906.0,27905.0,0.0399545]
[1680585641518,2.04901248,27906.0,27905.0,0.0399545]
[1680585642661,2.04901248,27906.0,27905.0,0.007184]
[1680585642662,2.04922248,27906.0,27905.0,0.007184]
[1680585642848,2.04901248,27906.0,27905.0,0.007184]
[1680585643776,1.98194602,27906.0,27905.0,0.0399545]
[1680585644675,1.6672261,27906.0,27905.0,0.0399545]
[1680585644905,1.95032296,27906.0,27905.0,0.0399545]
[1680585645969,1.95053296,27906.0,27905.0,0.0399545]
[1680585646810,1.95032296,27906.0,27905.0,0.0399545]
[1680585647023,2.20305286,27906.0,27905.0,0.0399545]
[1680585647440,2.20326286,27906.0,27905.0,0.0399545]
[1680585648085,2.20305286,27906.0,27905.0,0.0399545]
[1680585648308,2.20326286,27906.0,27905.0,0.0399545]
[1680585648509,2.20305286,27906.0,27905.0,0.0399545]
[1680585649227,2.20326286,27906.0,27905.0,0.0399545]
[1680585649441,2.20305286,27906.0,27905.0,0.0399545]
[1680585649659,2.20326286,27906.0,27905.0,0.0399545]
[1680585650094,2.20305286,27906.0,27905.0,0.0399545]
[1680585650525,2.20326286,27906.0,27905.0,0.0399545]
[1680585651174,1.920166,27906.0,27905.0,0.0399545]
[1680585651355,2.18548529,27906.0,27905.0,0.03985925]
[1680585651585,1.919956,27906.0,27905.0,0.03985925]
[1680585652013,2.25337813,27906.0,27905.0,0.03985925]
[1680585652237,1.919956,27906.0,27905.0,0.03985925]
[1680585652456,2.12615281,27906.0,27905.0,0.03985925]
[1680585652677,2.361856,27906.0,27905.0,0.03985925]
[1680585653387,2.334856,27906.0,27905.0,0.03985925]
[1680585653630,2.334856,27906.0,27905.0,0.00708875]
[1680585653872,2.361856,27906.0,27905.0,0.00708875]
[1680585654082,2.334856,27906.0,27905.0,0.00708875]
[1680585655722,2.361856,27906.0,27905.0,0.00708875]
[1680585655944,2.334856,27906.0,27905.0,0.00708875]
[1680585656166,2.361856,27906.0,27905.0,0.00708875]
[1680585657087,2.07629449,27906.0,27905.0,0.00708875]
[1680585657307,1.7315261,27906.0,27905.0,0.00708875]
[1680585657493,2.03863786,27906.0,27905.0,0.00708875]
[1680585658846,1.97433786,27906.0,27905.0,0.00708875]
[1680585659962,1.6402261,27906.0,27905.0,0.00708875]
[1680585660183,1.6240131,27906.0,27905.0,0.02358374]
[1680585660404,1.6365081,27906.0,27905.0,0.02358374]
[1680585660618,1.6365081,27906.0,27905.0,0.03883498]
[1680585661940,1.6565081,27906.0,27905.0,0.03883498]
[1680585662161,1.6365081,27906.0,27905.0,0.03883498]
[1680585662389,1.6495081,27906.0,27905.0,0.03883498]
[1680585662615,2.17207432,27906.0,27905.0,0.03883498]
[1680585662841,2.19207432,27906.0,27905.0,0.03883498]
[1680585663033,1.99054734,27906.0,27905.0,0.03883498]
[1680585669012,1.97054734,27906.0,27905.0,0.03883498]
[1680585669221,1.99054734,27906.0,27905.0,0.03883498]
[1680585669478,1.3098471,27906.0,27905.0,0.1432159]
[1680585669700,0.02,27906.0,27905.0,0.35626233]
[1680585669918,0.02,27906.0,27905.0,1.02209766]
[1680585670362,0.02,27906.0,27905.0,0.9969629]
[1680585670586,0.02,27906.0,27905.0,0.97828198]
[1680585670826,0.00892753,27909.0,27908.0,0.002]
[1680585671045,0.00892753,27909.0,27908.0,0.0873]
[1680585671046,1.29862505,27909.0,27908.0,0.0873]
[1680585671270,1.29862505,27909.0,27908.0,0.1726]
[1680585671484,0.00892753,27909.0,27908.0,0.1726]
[1680585671709,0.01609353,27909.0,27908.0,0.2084523]
[1680585671920,0.01609353,27909.0,27908.0,0.2234523]
[1680585672183,0.01709353,27909.0,27908.0,0.2234523]
[1680585672394,0.01609353,27909.0,27908.0,0.2084523]
[1680585673283,0.00892753,27909.0,27908.0,0.27861233]
[1680585673509,0.04921153,27911.0,27908.0,0.25673233]
[1680585673728,0.04900153,27911.0,27910.0,0.0857]
[1680585674178,0.00021,27912.0,27910.0,0.0857]
[1680585674404,0.30021,27913.0,27911.0,0.0877]
[1680585674622,1.33003066,27912.0,27911.0,0.002]
[1680585674900,1.58960966,27912.0,27911.0,0.0877]
[1680585675107,1.63122366,27912.0,27911.0,0.0877]
[1680585675319,0.341824,27912.0,27911.0,0.0877]
[1680585675528,0.3,27912.0,27911.0,0.0877]
[1680585675958,0.30021,27913.0,27911.0,0.10341638]
[1680585676181,0.30021,27913.0,27912.0,0.0857]
[1680585676395,0.00021,27913.0,27912.0,0.0857]
[1680585676621,1.55735485,27915.0,27912.0,0.0857]
[1680585676842,0.2534056,27913.0,27912.0,0.002]
[1680585677059,0.2534056,27913.0,27912.0,0.0877]
[1680585677060,1.59064278,27913.0,27912.0,0.0877]
[1680585677274,1.55113678,27913.0,27912.0,0.0967]
[1680585677494,0.2534056,27913.0,27912.0,0.0877]
[1680585677709,0.2534056,27913.0,27912.0,0.0967]
[1680585677926,0.2534056,27913.0,27912.0,0.0877]
[1680585678366,0.2544056,27913.0,27912.0,0.0967]
[1680585678771,0.2615706,27913.0,27912.0,0.12764406]
[1680585679027,0.2617806,27913.0,27912.0,0.12764406]
[1680585679701,0.2616306,27913.0,27912.0,0.12764406]
[1680585679914,0.2615706,27913.0,27912.0,0.12764406]
[1680585681444,0.00805814,27913.0,27912.0,0.12764406]
[1680585681906,0.37515366,27913.0,27912.0,0.04194406]
[1680585682125,0.37536366,27913.0,27912.0,0.04194406]
[1680585682781,0.37515366,27913.0,27912.0,0.04194406]
[1680585683435,0.37515366,27913.0,27912.0,0.0853]
[1680585683436,0.37536366,27913.0,27912.0,0.0853]
[1680585683655,0.32766866,27913.0,27912.0,0.11612012]
[1680585683883,0.00110314,27913.0,27912.0,0.11612012]
[1680585684115,0.00089314,27913.0,27912.0,0.11612012]
[1680585685712,0.00089314,27913.0,27912.0,0.13933412]
[1680585685930,0.00089314,27913.0,27912.0,0.15543305]
[1680585686384,0.00089314,27913.0,27912.0,0.11612012]
[1680585686385,0.14299995,27913.0,27912.0,0.11612012]
[1680585686611,0.29816668,27913.0,27912.0,0.03092012]
[1680585686840,0.59816668,27913.0,27912.0,0.03092012]
[1680585687728,0.59816668,27913.0,27909.0,0.52663137]
[1680585687985,0.3,27912.0,27909.0,0.52663137]
[1680585688207,0.007165,27911.0,27909.0,0.52663137]
[1680585688437,0.007165,27911.0,27909.0,0.10183137]
[1680585688883,0.007165,27911.0,27909.0,0.10983137]
[1680585689100,0.007165,27911.0,27909.0,0.008]
[1680585689328,0.31594321,27911.0,27908.0,0.01490605]
[1680585689540,0.31694321,27911.0,27909.0,0.008]
[1680585689763,0.31594321,27911.0,27908.0,0.01490605]
[1680585689983,0.31694321,27911.0,27909.0,0.008]
[1680585690203,0.31594321,27911.0,27908.0,0.01490605]
[1680585691271,0.70494513,27910.0,27909.0,0.008]
[1680585691488,0.2,27906.0,27905.0,0.00708875]
[1680585691722,0.40606581,27906.0,27905.0,0.00708875]
[1680585691930,0.263142,27906.0,27905.0,0.00708875]
[1680585692151,0.521499,27906.0,27905.0,0.00708875]
[1680585692400,0.021499,27906.0,27905.0,0.08094322]
[1680585692641,0.00021,27910.0,27905.0,1.11377525]
[1680585692846,0.001,27906.0,27905.0,0.56893369]
[1680585693101,0.001,27906.0,27905.0,0.75680269]
[1680585693528,0.001,27906.0,27905.0,1.11151325]
[1680585693754,0.001,27906.0,27905.0,1.11139325]
[1680585693973,0.04959409,27911.0,27905.0,1.18382402]
[1680585694192,0.002,27910.0,27909.0,0.0856]
[1680585694903,0.50496188,27912.0,27909.0,0.0856]
[1680585695115,0.002,27910.0,27909.0,0.11431889]
[1680585695329,0.002,27910.0,27909.0,0.13174589]
[1680585695766,0.002,27910.0,27909.0,0.16049785]
[1680585696214,0.002,27910.0,27909.0,0.19144564]
[1680585697755,0.002,27910.0,27909.0,0.14307085]
[1680585697981,0.002,27910.0,27909.0,0.16052585]
[1680585698192,0.002,27910.0,27909.0,0.14307085]
[1680585699628,0.009165,27910.0,27909.0,0.14307085]
[1680585699839,0.002,27910.0,27909.0,0.14307085]
[1680585700623,0.002,27910.0,27909.0,0.05747085]
[1680585700823,0.002,27910.0,27909.0,0.04175196]
[1680585700824,0.009165,27910.0,27909.0,0.04175196]
[1680585701253,0.2709978,27910.0,27909.0,0.04175196]
[1680585701679,0.2689978,27910.0,27909.0,0.02875196]
[1680585702754,0.2709978,27910.0,27909.0,0.04175196]
[1680585702976,0.079772,27910.0,27909.0,0.04175196]
[1680585703184,0.37416661,27910.0,27909.0,0.04175196]
[1680585703400,1.66384759,27910.0,27909.0,0.04175196]
[1680585703827,1.66184759,27910.0,27905.0,0.02356252]
[1680585704064,0.042804,27909.0,27905.0,0.06006947]
[1680585704279,0.021498,27908.0,27905.0,0.06006947]
[1680585704504,0.021498,27908.0,27905.0,0.06000947]
[1680585704731,0.021498,27908.0,27906.0,0.02781423]
[1680585704926,0.33884074,27907.0,27906.0,0.02781423]
[1680585705163,0.34600674,27907.0,27906.0,0.02781423]
[1680585706034,0.34700674,27907.0,27906.0,0.03593423]
[1680585706936,0.88978263,27907.0,27906.0,0.03581423]
[1680585708327,0.88734363,27907.0,27906.0,0.02781423]
[1680585708541,0.88834363,27907.0,27906.0,0.03581423]
[1680585710109,0.88855363,27907.0,27906.0,0.03581423]
[1680585710339,0.50121,27907.0,27906.0,0.03581423]
[1680585711003,0.508376,27907.0,27906.0,0.03581423]
[1680585711911,0.507376,27907.0,27906.0,0.02781423]
[1680585712127,0.508376,27907.0,27906.0,0.03581423]
[1680585712337,0.50021,27907.0,27906.0,0.02781423]
[1680585712550,0.508376,27907.0,27906.0,0.03581423]
[1680585714119,0.50121,27907.0,27906.0,0.03581423]
[1680585714349,0.50121,27907.0,27906.0,0.05446386]
[1680585714573,0.508376,27907.0,27906.0,0.03581423]
[1680585715008,0.507396,27907.0,27906.0,0.03581423]
[1680585715672,0.506396,27907.0,27906.0,0.02781423]
[1680585716308,0.507396,27907.0,27906.0,0.03581423]
[1680585723023,0.507396,27907.0,27906.0,0.05311023]
[1680585723259,0.507396,27907.0,27906.0,0.121065]
[1680585723448,0.507396,27907.0,27906.0,0.03599423]
[1680585723646,0.507396,27907.0,27906.0,0.03581423]
[1680585723845,0.507396,27907.0,27906.0,0.138931]
[1680585723991,0.507396,27907.0,27906.0,0.05365223]
[1680585724194,0.507396,27907.0,27906.0,0.03593423]
[1680585724605,0.507396,27907.0,27906.0,0.138986]
[1680585724839,0.507396,27907.0,27906.0,0.139046]
[1680585725006,0.507396,27907.0,27906.0,0.05379523]
[1680585725382,0.20023,27907.0,27906.0,0.23290366]
[1680585725607,0.001,27907.0,27906.0,0.36996905]
[1680585725845,0.001,27907.0,27906.0,0.79289274]
[1680585726052,0.001,27907.0,27906.0,0.83534782]
[1680585726264,0.001,27907.0,27906.0,1.17336072]
[1680585726527,0.001,27907.0,27906.0,1.17324072]
[1680585726739,0.24903895,27911.0,27907.0,0.1]
[1680585726956,0.24903895,27911.0,27910.0,0.0771]
[1680585727178,0.54903895,27911.0,27910.0,0.0771]
[1680585727390,0.49944,27911.0,27910.0,0.0771]
[1680585727807,0.50044,27911.0,27910.0,0.12610935]
[1680585728033,0.49944,27911.0,27910.0,0.10890335]
[1680585728244,0.49944,27911.0,27910.0,0.12890335]
[1680585728463,0.20044,27911.0,27910.0,0.12890335]
[1680585728680,0.50044,27911.0,27910.0,0.12890335]
[1680585730292,0.50044,27911.0,27910.0,0.14264583]
[1680585730512,0.20044,27911.0,27910.0,0.14264583]